Workbook

Sheet План 2017
A1: План на 2017 год по оплате ООО "НЭСК" в адрес ЗАО "Волгаэнергосбыт" по договору купли-продажи электрической энергии в целях компенсации технологического расхода (потерь) при её передаче по электрическим сетям
A4: План на 2017 год | B4: прием в сеть, тыс.кВт.ч. | C4: потери | E4: тариф, руб./тыс.квт.ч. | F4: сумма, руб. без НДС
C5: % (согласно решения РСТ) | D5: тыс.кВт.ч.
A6: январь | B6: 64,951.089 | C6: 5.285 | D6: =B6*C6/100 -> 3,432.665 | E6: 2298.550 | F6: =D6*E6 -> 7,890,152.14
A7: февраль | B7: 65,755.345 | C7: 5.285 | D7: =B7*C7/100 -> 3,475.170 | E7: 2298.550 | F7: 7,987,852.00
A8: март | B8: 75,138.200 | C8: 5.285 | D8: 3,971.054 | E8: 2,298.550 | F8: 9,127,666.17
A9: апрель | B9: 68,155.797 | C9: 5.285 | D9: 3,602.034 | E9: 2,298.550 | F9: 8,279,455.25
A10: май | B10: 55,534.124 | C10: 5.285 | D10: 2,934.978 | E10: 2,298.550 | F10: 6,746,193.68
A11: июнь | B11: 64,806.532 | C11: 5.285 | D11: 3,425.025 | E11: 2,298.550 | F11: 7,872,591.21
A12: июль | B12: 55,034.446 | C12: 5.285 | D12: 2,908.570 | E12: =E11*1.116 -> 2,565.182 | F12: 7,461,011.41
A13: август | B13: 69,151.984 | C13: 5.285 | D13: 3,654.682 | E13: 2,565.182 | F13: 9,374,924.48
A14: сентябрь | B14: 72,326.808 | C14: 5.285 | D14: 3,822.472 | E14: 2,565.182 | F14: 9,805,336.37
A15: октябрь | B15: 77,923.295 | C15: 5.285 | D15: 4,118.246 | E15: 2,565.182 | F15: 10,564,050.51
A16: ноябрь | B16: 78,840.198 | C16: 5.285 | D16: 4,166.704 | E16: 2,565.182 | F16: 10,688,354.10
A17: декабрь | B17: 85,946.192 | C17: 5.285 | D17: 4,542.256 | E17: 2,565.182 | F17: 11,651,713.33
A18: ИТОГО | B18: =SUM(B6:B17) -> 833,564.010 | D18: =SUM(D6:D17) -> 44,053.856 | E18: =F18/D18 -> 2,439.044 | F18: =SUM(F6:F17) -> 107,449,300.650
A20: Факт за 2017 год по оплате ООО "НЭСК" в адрес ЗАО "Волгаэнергосбыт" по договору купли-продажи электрической энергии в целях компенсации технологического расхода (потерь) при её передаче по электрическим сетям
A23: Факт за 2017 год | B23: прием в сеть, тыс.кВт.ч. | C23: потери | E23: тариф, руб./тыс.квт.ч. | F23: сумма, руб. без НДС
C24: % (согласно решения РСТ) | D24: тыс.кВт.ч.
A25: январь | B25: 56,665.538 | C25: =D25/B25 -> 5.173% | D25: 2,931.059 | E25: =F25/D25 -> 2,052.689 | F25: 6,016,551.95
A26: февраль | B26: 67,812.041 | C26: =D26/B26 -> 5.125% | D26: 3,475.705 | E26: =F26/D26 -> 2,689.952 | F26: 9,349,479.80
A27: март | B27: 70,462.308 | C27: 5.242% | D27: 3,693.578 | E27: 2,169.399 | F27: 8,012,845.71
A28: апрель | B28: 66,865.883 | C28: 5.249% | D28: 3,510.017 | E28: 2,579.023 | F28: 9,052,416.18
A29: май | B29: 59,064.506 | C29: 5.236% | D29: 3,092.831 | E29: 2,408.841 | F29: 7,450,136.76
A30: июнь | B30: 63,424.130 | C30: 5.253% | D30: 3,331.507 | E30: 2,245.036 | F30: 7,479,352.51
A31: июль | B31: 48,468.158 | C31: 5.300% | D31: 2,568.886 | E31: 2,530.120 | F31: 6,499,589.85
A32: август | B32: 71,890.161 | C32: 5.307% | D32: 3,815.019 | E32: 2,503.820 | F32: 9,552,122.43
A33: сентябрь | B33: 67,430.480 | C33: 5.245% | D33: 3,536.617 | E33: 2,554.471 | F33: 9,034,185.47
A34: октябрь | B34: 75,604.657 | C34: 5.220% | D34: 3,946.551 | E34: 2,547.169 | F34: 10,052,531.41
A35: ноябрь | B35: 73,038.427 | C35: 5.234% | D35: 3,823.158 | E35: 2,450.077 | F35: 9,367,030.59
A36: декабрь | B36: 74,122.982 | C36: 5.460% | D36: 4,046.805 | E36: 2,259.894 | F36: 9,145,350.19
A37: ИТОГО | B37: 794,849.271 | D37: 41,771.733 | E37: 2,418.181 | F37: =SUM(F25:F36) -> 101,011,592.850
